[Event "*** Titled Tuesday Blitz"]
[Site "Chess.com"]
[Date "2020.01.07"]
[Round "4"]
[White "pedromartinez91"]
[Black "Ar4uha"]
[Result "0-1"]
[WhiteElo "2370"]
[BlackElo "2603"]
[TimeControl "180+2"]
[EndTime "13:52:55 PST"]
[Termination "Ar4uha won on time"]

1. e4 {[%clk 0:03:00]} 1... d5 {[%clk 0:02:51.5]} 2. exd5 {[%clk 0:03:00.3]}
2... Nf6 {[%clk 0:02:53]} 3. Bb5+ {[%clk 0:02:49.9]} 3... Bd7 {[%clk 0:02:52.8]}
4. Bc4 {[%clk 0:02:51.1]} 4... Bg4 {[%clk 0:02:53.8]} 5. f3 {[%clk 0:02:51.8]}
5... Bf5 {[%clk 0:02:55]} 6. Nc3 {[%clk 0:02:47.5]} 6... Nbd7 {[%clk 0:02:55.5]}
7. g4 {[%clk 0:02:41.2]} 7... Nb6 {[%clk 0:02:56.8]} 8. b3 {[%clk 0:02:41.6]}
8... Bc8 {[%clk 0:02:56.5]} 9. Bb2 {[%clk 0:02:37]} 9... Nfxd5 {[%clk
0:02:57.5]} 10. Nxd5 {[%clk 0:02:37.7]} 10... Nxd5 {[%clk 0:02:59.4]} 11. Qe2
{[%clk 0:02:34.9]} 11... e6 {[%clk 0:03:00.1]} 12. O-O-O {[%clk 0:02:32.6]}
12... Be7 {[%clk 0:03:01]} 13. Bxd5 {[%clk 0:02:27.5]} 13... Qxd5 {[%clk
0:03:01.2]} 14. Bxg7 {[%clk 0:02:27.4]} 14... Rg8 {[%clk 0:03:02.4]} 15. Bb2
{[%clk 0:02:27.7]} 15... Bd7 {[%clk 0:03:03.6]} 16. Nh3 {[%clk 0:02:08.2]} 16...
Bc6 {[%clk 0:03:02.9]} 17. Rhf1 {[%clk 0:02:08.6]} 17... O-O-O {[%clk
0:03:03.5]} 18. Nf4 {[%clk 0:02:06.7]} 18... Qa5 {[%clk 0:03:04.3]} 19. Kb1
{[%clk 0:02:00.1]} 19... Bg5 {[%clk 0:03:05.6]} 20. Nd3 {[%clk 0:01:58.8]} 20...
Bb5 {[%clk 0:03:03.5]} 21. c4 {[%clk 0:01:59.5]} 21... Bc6 {[%clk 0:03:00.6]}
22. f4 {[%clk 0:01:57.6]} 22... Be7 {[%clk 0:02:59.7]} 23. Ne5 {[%clk 0:01:58]}
23... Be8 {[%clk 0:03:00.9]} 24. Bc3 {[%clk 0:01:52.6]} 24... Qb6 {[%clk
0:02:58.8]} 25. d4 {[%clk 0:01:51.7]} 25... f6 {[%clk 0:02:58.8]} 26. Nf3 {[%clk
0:01:50.7]} 26... Bg6+ {[%clk 0:02:57.9]} 27. Kb2 {[%clk 0:01:44]} 27... Qa6
{[%clk 0:02:57.2]} 28. a4 {[%clk 0:01:42.8]} 28... Qd6 {[%clk 0:02:56.9]} 29. c5
{[%clk 0:01:30.9]} 29... Qxf4 {[%clk 0:02:57.3]} 30. Qxe6+ {[%clk 0:01:19.9]}
30... Kb8 {[%clk 0:02:56.7]} 31. Ne5 {[%clk 0:01:08.5]} 31... Qxh2+ {[%clk
0:02:55.7]} 32. Rd2 {[%clk 0:01:09.2]} 32... Qh3 {[%clk 0:02:57.2]} 33. Rf3
{[%clk 0:01:02.2]} 33... Qh1 {[%clk 0:02:52.7]} 34. Nd7+ {[%clk 0:00:55.7]}
34... Rxd7 {[%clk 0:02:52]} 35. Qxg8+ {[%clk 0:00:45.6]} 35... Rd8 {[%clk
0:02:50.8]} 36. Qe6 {[%clk 0:00:40.7]} 36... Qxf3 {[%clk 0:02:51]} 37. Qxe7
{[%clk 0:00:41.8]} 37... Re8 {[%clk 0:02:52.5]} 38. Qd7 {[%clk 0:00:39.7]} 38...
Qe4 {[%clk 0:02:44.8]} 39. d5 {[%clk 0:00:38]} 39... Qb1+ {[%clk 0:02:41.5]} 40.
Ka3 {[%clk 0:00:38.9]} 40... Qc1+ {[%clk 0:02:42.9]} 41. Kb4 {[%clk 0:00:20.9]}
41... a5+ {[%clk 0:02:43.2]} 42. Kc4 {[%clk 0:00:21.8]} 42... Qf1+ {[%clk
0:02:42.8]} 0-1

[Event "*** Titled Tuesday Blitz"]
[Site "Chess.com"]
[Date "2020.01.07"]
[Round "4"]
[White "francyIM"]
[Black "Olga_Zhuravleva"]
[Result "1-0"]
[WhiteElo "2606"]
[BlackElo "2361"]
[TimeControl "180+2"]
[EndTime "13:52:56 PST"]
[Termination "francyIM won by resignation"]

1. d4 {[%clk 0:03:01.9]} 1... g6 {[%clk 0:02:59.4]} 2. c4 {[%clk 0:03:03.3]}
2... Bg7 {[%clk 0:03:01]} 3. g3 {[%clk 0:03:04.7]} 3... d6 {[%clk 0:03:02.5]} 4.
Nf3 {[%clk 0:03:05.3]} 4... Nc6 {[%clk 0:03:04.2]} 5. Nc3 {[%clk 0:03:06.3]}
5... e5 {[%clk 0:03:05.8]} 6. dxe5 {[%clk 0:03:06.9]} 6... Nxe5 {[%clk
0:03:06.2]} 7. Nxe5 {[%clk 0:03:08.2]} 7... Bxe5 {[%clk 0:03:06.8]} 8. Qd2
{[%clk 0:03:09.5]} 8... Bg7 {[%clk 0:03:07.9]} 9. Bg2 {[%clk 0:03:10.4]} 9...
Nf6 {[%clk 0:03:08.6]} 10. b3 {[%clk 0:03:10.6]} 10... O-O {[%clk 0:03:07.3]}
11. Bb2 {[%clk 0:03:12.1]} 11... Re8 {[%clk 0:03:08.1]} 12. O-O {[%clk
0:03:12.8]} 12... a6 {[%clk 0:03:05.9]} 13. Nd5 {[%clk 0:03:10.5]} 13... Bf5
{[%clk 0:02:50.8]} 14. Nxf6+ {[%clk 0:03:08.2]} 14... Bxf6 {[%clk 0:02:52]} 15.
Bxb7 {[%clk 0:03:08.3]} 15... Rb8 {[%clk 0:02:45.2]} 16. Bg2 {[%clk 0:03:09]}
16... Bxb2 {[%clk 0:02:28.9]} 17. Qxb2 {[%clk 0:03:10.9]} 17... Bg4 {[%clk
0:02:25]} 18. e3 {[%clk 0:03:10.6]} 18... Be6 {[%clk 0:02:22]} 19. Rac1 {[%clk
0:03:08.9]} 19... Qg5 {[%clk 0:02:20.3]} 20. Rfd1 {[%clk 0:03:08.3]} 20... h5
{[%clk 0:02:18.5]} 21. Rd4 {[%clk 0:03:07.4]} 21... Qe5 {[%clk 0:02:15.2]} 22.
Qd2 {[%clk 0:03:07]} 22... Rb6 {[%clk 0:02:13.2]} 23. Rd1 {[%clk 0:03:02.2]}
23... a5 {[%clk 0:02:05]} 24. Bd5 {[%clk 0:02:52.5]} 24... Bg4 {[%clk
0:02:01.8]} 25. f3 {[%clk 0:02:53]} 25... Bh3 {[%clk 0:01:51.5]} 26. Re4 {[%clk
0:02:52.1]} 26... a4 {[%clk 0:01:36]} 27. Rxe5 {[%clk 0:02:41.9]} 27... dxe5
{[%clk 0:01:37.9]} 28. c5 {[%clk 0:02:40.4]} 28... Rbb8 {[%clk 0:01:29.4]} 29.
bxa4 {[%clk 0:02:40.3]} 29... Rec8 {[%clk 0:01:08.2]} 30. c6 {[%clk 0:02:37.8]}
30... Rb6 {[%clk 0:01:06.1]} 31. a5 {[%clk 0:02:36.9]} 31... Rb5 {[%clk
0:01:06.2]} 32. a4 {[%clk 0:02:35.9]} 32... Rc5 {[%clk 0:01:04.6]} 33. a6 {[%clk
0:02:23.8]} 33... Ra8 {[%clk 0:01:01.9]} 34. Qe2 {[%clk 0:02:22]} 34... Ra5
{[%clk 0:00:58.7]} 35. Bc4 {[%clk 0:02:20.6]} 35... Rxa4 {[%clk 0:00:59.2]} 36.
Kf2 {[%clk 0:02:20.5]} 36... Rb8 {[%clk 0:00:54.9]} 37. Rd2 {[%clk 0:02:17.4]}
37... Rb1 {[%clk 0:00:53.4]} 38. Ra2 {[%clk 0:02:12.4]} 38... Rxa2 {[%clk
0:00:41.6]} 39. Qxa2 {[%clk 0:02:12]} 39... Rh1 {[%clk 0:00:43.5]} 40. a7 {[%clk
0:02:07.1]} 40... Rxh2+ {[%clk 0:00:43.8]} 41. Kg1 {[%clk 0:01:54.2]} 1-0

[Event "*** Titled Tuesday Blitz"]
[Site "Chess.com"]
[Date "2020.01.07"]
[Round "4"]
[White "Vegan4future"]
[Black "Faqade"]
[Result "0-1"]
[WhiteElo "2424"]
[BlackElo "2650"]
[TimeControl "180+2"]
[EndTime "13:53:03 PST"]
[Termination "Faqade won by resignation"]

1. d4 {[%clk 0:03:01.9]} 1... Nf6 {[%clk 0:03:00.3]} 2. c4 {[%clk 0:03:02.5]}
2... e6 {[%clk 0:03:00.3]} 3. Nf3 {[%clk 0:03:03.9]} 3... Bb4+ {[%clk
0:03:00.5]} 4. Bd2 {[%clk 0:03:02.7]} 4... Bxd2+ {[%clk 0:02:59.4]} 5. Qxd2
{[%clk 0:03:03.7]} 5... O-O {[%clk 0:02:56.6]} 6. Nc3 {[%clk 0:03:04.3]} 6... d6
{[%clk 0:02:56.9]} 7. e4 {[%clk 0:03:05.1]} 7... e5 {[%clk 0:02:56.6]} 8. Bd3
{[%clk 0:03:06.1]} 8... Bg4 {[%clk 0:02:56.8]} 9. d5 {[%clk 0:02:55.5]} 9... a5
{[%clk 0:02:56.4]} 10. Qe3 {[%clk 0:02:54.6]} 10... Bxf3 {[%clk 0:02:55.1]} 11.
gxf3 {[%clk 0:02:54.9]} 11... Nh5 {[%clk 0:02:55.6]} 12. Ne2 {[%clk 0:02:55.1]}
12... Na6 {[%clk 0:02:52.2]} 13. O-O-O {[%clk 0:02:55.7]} 13... Nc5 {[%clk
0:02:51.4]} 14. Bc2 {[%clk 0:02:57.1]} 14... Qf6 {[%clk 0:02:51.5]} 15. Rhg1
{[%clk 0:02:54.6]} 15... Nf4 {[%clk 0:02:51.5]} 16. Nxf4 {[%clk 0:02:54.6]}
16... exf4 {[%clk 0:02:41.8]} 17. Qd2 {[%clk 0:02:35.2]} 17... h5 {[%clk
0:02:31]} 18. Rg2 {[%clk 0:02:29]} 18... Ra6 {[%clk 0:02:29.4]} 19. Rdg1 {[%clk
0:02:25.7]} 19... g6 {[%clk 0:02:29.4]} 20. Rg5 {[%clk 0:02:09]} 20... Rb6
{[%clk 0:02:28]} 21. Bb1 {[%clk 0:02:04]} 21... Rb4 {[%clk 0:02:27]} 22. Rf5
{[%clk 0:01:28.8]} 22... Rxc4+ {[%clk 0:02:14.3]} 23. Bc2 {[%clk 0:01:29.9]}
23... Qg7 {[%clk 0:01:48.2]} 24. Rxf4 {[%clk 0:01:07.2]} 24... a4 {[%clk
0:01:44.3]} 25. Kd1 {[%clk 0:00:42]} 25... Qxb2 {[%clk 0:01:40.2]} 26. Bd3
{[%clk 0:00:29]} 26... Nxd3 {[%clk 0:01:37.3]} 27. Qxb2 {[%clk 0:00:25.4]} 27...
Nxb2+ {[%clk 0:01:39.2]} 28. Kd2 {[%clk 0:00:27]} 28... b5 {[%clk 0:01:36.8]}
29. Rh4 {[%clk 0:00:27.9]} 29... Kh7 {[%clk 0:01:36.5]} 30. Ke3 {[%clk
0:00:26.8]} 30... Re8 {[%clk 0:01:36.4]} 31. Kf4 {[%clk 0:00:27.6]} 31... Nd3+
{[%clk 0:01:36.3]} 32. Kg5 {[%clk 0:00:27.9]} 32... Kg7 {[%clk 0:01:35.2]} 0-1

[Event "*** Titled Tuesday Blitz"]
[Site "Chess.com"]
[Date "2020.01.07"]
[Round "4"]
[White "stoleriu"]
[Black "Khalakhanov"]
[Result "0-1"]
[WhiteElo "2550"]
[BlackElo "2357"]
[TimeControl "180+2"]
[EndTime "13:53:08 PST"]
[Termination "Khalakhanov won by resignation"]

1. e4 {[%clk 0:03:01.9]} 1... c5 {[%clk 0:02:59.6]} 2. Nc3 {[%clk 0:03:01.2]}
2... a6 {[%clk 0:02:54.4]} 3. Nf3 {[%clk 0:03:01]} 3... e6 {[%clk 0:02:54.1]} 4.
d4 {[%clk 0:03:02.3]} 4... cxd4 {[%clk 0:02:56]} 5. Nxd4 {[%clk 0:03:04.2]} 5...
Qc7 {[%clk 0:02:57.4]} 6. Bd3 {[%clk 0:03:05]} 6... Nc6 {[%clk 0:02:58.6]} 7.
Nxc6 {[%clk 0:03:06.2]} 7... bxc6 {[%clk 0:02:59.8]} 8. O-O {[%clk 0:03:08]}
8... d5 {[%clk 0:03:01.3]} 9. Qe2 {[%clk 0:03:01.6]} 9... Nf6 {[%clk 0:03:02.6]}
10. Kh1 {[%clk 0:02:58.5]} 10... Be7 {[%clk 0:03:03.7]} 11. e5 {[%clk
0:02:57.6]} 11... Nd7 {[%clk 0:03:04]} 12. f4 {[%clk 0:02:59.5]} 12... Nc5
{[%clk 0:03:05.3]} 13. Be3 {[%clk 0:02:57.1]} 13... Nxd3 {[%clk 0:03:06.5]} 14.
cxd3 {[%clk 0:02:59]} 14... c5 {[%clk 0:03:07.9]} 15. d4 {[%clk 0:02:58.1]}
15... c4 {[%clk 0:03:09.2]} 16. f5 {[%clk 0:02:54]} 16... Bd7 {[%clk 0:02:57.4]}
17. Qg4 {[%clk 0:02:49.7]} 17... g6 {[%clk 0:02:54.4]} 18. fxe6 {[%clk
0:02:24.6]} 18... Bxe6 {[%clk 0:02:46]} 19. Qf3 {[%clk 0:02:24.6]} 19... Qb7
{[%clk 0:02:42.2]} 20. b3 {[%clk 0:02:20.4]} 20... cxb3 {[%clk 0:02:43.2]} 21.
Rab1 {[%clk 0:02:20.8]} 21... b2 {[%clk 0:02:43.2]} 22. Rf2 {[%clk 0:02:20.3]}
22... Qc6 {[%clk 0:02:40.8]} 23. Bh6 {[%clk 0:02:20.9]} 23... Rc8 {[%clk
0:02:37.2]} 24. Nd1 {[%clk 0:02:03.9]} 24... Qc4 {[%clk 0:02:29.1]} 25. Rd2
{[%clk 0:01:52.3]} 25... Bg4 {[%clk 0:02:12.8]} 26. Qf2 {[%clk 0:01:41.3]} 26...
Qc1 {[%clk 0:01:19.2]} 27. e6 {[%clk 0:01:09.9]} 27... f5 {[%clk 0:01:15.2]} 28.
Rdxb2 {[%clk 0:00:27]} 28... Qxh6 {[%clk 0:01:15.7]} 29. Ne3 {[%clk 0:00:27.9]}
29... O-O {[%clk 0:01:06.7]} 30. Nxd5 {[%clk 0:00:28.7]} 30... Rc1+ {[%clk
0:01:07.8]} 0-1

[Event "*** Titled Tuesday Blitz"]
[Site "Chess.com"]
[Date "2020.01.07"]
[Round "4"]
[White "Doraemon7"]
[Black "manmanlai1"]
[Result "0-1"]
[WhiteElo "2505"]
[BlackElo "2386"]
[TimeControl "180+2"]
[EndTime "13:53:11 PST"]
[Termination "manmanlai1 won on time"]

1. d4 {[%clk 0:03:01.9]} 1... d5 {[%clk 0:03:00.1]} 2. c4 {[%clk 0:03:02.4]}
2... e6 {[%clk 0:03:01]} 3. Nf3 {[%clk 0:03:02.8]} 3... a6 {[%clk 0:03:01.9]} 4.
Nbd2 {[%clk 0:03:03]} 4... Nf6 {[%clk 0:02:57.4]} 5. g3 {[%clk 0:03:02.1]} 5...
dxc4 {[%clk 0:02:50.2]} 6. Nxc4 {[%clk 0:03:02.2]} 6... b5 {[%clk 0:02:51.1]} 7.
Nce5 {[%clk 0:03:00.9]} 7... Bb7 {[%clk 0:02:42.6]} 8. Bg2 {[%clk 0:03:00.1]}
8... c5 {[%clk 0:02:43.6]} 9. O-O {[%clk 0:02:42.2]} 9... Qb6 {[%clk 0:02:37.8]}
10. a4 {[%clk 0:02:33.8]} 10... Nc6 {[%clk 0:02:27.2]} 11. a5 {[%clk 0:02:07.7]}
11... Qa7 {[%clk 0:02:04.4]} 12. Bg5 {[%clk 0:01:51]} 12... Be7 {[%clk 0:01:47]}
13. Nxc6 {[%clk 0:01:37.5]} 13... Bxc6 {[%clk 0:01:46.2]} 14. dxc5 {[%clk
0:01:39.4]} 14... Bxc5 {[%clk 0:01:33.9]} 15. Rc1 {[%clk 0:01:23.1]} 15... Bd5
{[%clk 0:01:27.2]} 16. Qc2 {[%clk 0:01:07.1]} 16... Be7 {[%clk 0:01:25.3]} 17.
Ne5 {[%clk 0:00:14.6]} 17... Bxg2 {[%clk 0:01:18.6]} 18. Kxg2 {[%clk 0:00:16.5]}
18... O-O {[%clk 0:01:13.8]} 19. Nc6 {[%clk 0:00:12.8]} 19... Qb7 {[%clk
0:01:14.8]} 20. e4 {[%clk 0:00:10.2]} 20... h6 {[%clk 0:01:09.2]} 21. Bxf6
{[%clk 0:00:04]} 21... Bxf6 {[%clk 0:01:09.8]} 22. f3 {[%clk 0:00:03.4]} 22...
Rac8 {[%clk 0:01:07.5]} 23. Rfd1 {[%clk 0:00:04]} 23... Rc7 {[%clk 0:01:02.3]}
0-1

[Event "*** Titled Tuesday Blitz"]
[Site "Chess.com"]
[Date "2020.01.07"]
[Round "4"]
[White "luis-garcia"]
[Black "ITheOnlyME"]
[Result "0-1"]
[WhiteElo "2133"]
[BlackElo "2312"]
[TimeControl "180+2"]
[EndTime "13:53:13 PST"]
[Termination "ITheOnlyME won by resignation"]

1. d4 {[%clk 0:03:01.9]} 1... d6 {[%clk 0:03:00.7]} 2. c4 {[%clk 0:03:01.9]}
2... e5 {[%clk 0:03:01.9]} 3. d5 {[%clk 0:02:50]} 3... f5 {[%clk 0:03:02.3]} 4.
Nc3 {[%clk 0:02:50.7]} 4... Nf6 {[%clk 0:03:03.7]} 5. g3 {[%clk 0:02:51.8]} 5...
g6 {[%clk 0:03:00.5]} 6. Bg2 {[%clk 0:02:53]} 6... Bg7 {[%clk 0:03:01.8]} 7. e4
{[%clk 0:02:54.2]} 7... O-O {[%clk 0:03:02.8]} 8. Nge2 {[%clk 0:02:54.9]} 8...
a5 {[%clk 0:03:04.1]} 9. O-O {[%clk 0:02:55.7]} 9... Na6 {[%clk 0:03:05.7]} 10.
Bg5 {[%clk 0:02:29.5]} 10... Nc5 {[%clk 0:03:04]} 11. Bxf6 {[%clk 0:02:30.8]}
11... Qxf6 {[%clk 0:02:52.2]} 12. f4 {[%clk 0:02:27.4]} 12... exf4 {[%clk
0:02:40.2]} 13. Nxf4 {[%clk 0:02:10.6]} 13... Qd4+ {[%clk 0:02:31.5]} 14. Kh1
{[%clk 0:01:56.4]} 14... fxe4 {[%clk 0:02:22.9]} 15. Qxd4 {[%clk 0:01:47]} 15...
Bxd4 {[%clk 0:02:23.5]} 16. Nxe4 {[%clk 0:01:45.1]} 16... Nxe4 {[%clk
0:02:02.2]} 17. Bxe4 {[%clk 0:01:45.2]} 17... Bxb2 {[%clk 0:02:03.8]} 18. Rab1
{[%clk 0:01:44.2]} 18... Be5 {[%clk 0:02:03.2]} 19. Nd3 {[%clk 0:01:40.2]} 19...
Rxf1+ {[%clk 0:01:55]} 20. Rxf1 {[%clk 0:01:42.1]} 20... Bh3 {[%clk 0:01:54.8]}
21. Rb1 {[%clk 0:01:40]} 21... Bd4 {[%clk 0:01:31.3]} 22. Rxb7 {[%clk
0:01:24.6]} 22... Bb6 {[%clk 0:01:32.1]} 23. c5 {[%clk 0:01:04.6]} 23... Bc8
{[%clk 0:01:20.3]} 24. cxb6 {[%clk 0:00:39.6]} 24... Bxb7 {[%clk 0:01:19.5]} 25.
bxc7 {[%clk 0:00:38.2]} 25... Rc8 {[%clk 0:01:20.5]} 26. Kg2 {[%clk 0:00:29.6]}
26... Rxc7 {[%clk 0:01:20.2]} 27. Nf4 {[%clk 0:00:29.5]} 27... Rc4 {[%clk
0:01:16.3]} 28. Kf3 {[%clk 0:00:21.4]} 28... Ra4 {[%clk 0:01:17.5]} 29. Bb1
{[%clk 0:00:17.8]} 29... g5 {[%clk 0:01:15.8]} 30. Ne6 {[%clk 0:00:13.3]} 30...
Bxd5+ {[%clk 0:01:16.4]} 0-1

[Event "*** Titled Tuesday Blitz"]
[Site "Chess.com"]
[Date "2020.01.07"]
[Round "4"]
[White "secretsuperstar7"]
[Black "pedroholly22"]
[Result "1/2-1/2"]
[WhiteElo "2206"]
[BlackElo "2339"]
[TimeControl "180+2"]
[EndTime "13:53:18 PST"]
[Termination "Game drawn by repetition"]

1. d4 {[%clk 0:03:01.9]} 1... Nf6 {[%clk 0:02:50.2]} 2. c4 {[%clk 0:03:01]} 2...
g6 {[%clk 0:02:49.4]} 3. Nc3 {[%clk 0:02:59.9]} 3... Bg7 {[%clk 0:02:51]} 4. e4
{[%clk 0:02:59.3]} 4... O-O {[%clk 0:02:51.3]} 5. h3 {[%clk 0:02:58.9]} 5... d6
{[%clk 0:02:52]} 6. Nf3 {[%clk 0:02:59.7]} 6... c5 {[%clk 0:02:52.5]} 7. Be3
{[%clk 0:02:54.2]} 7... cxd4 {[%clk 0:02:53.1]} 8. Nxd4 {[%clk 0:02:53.9]} 8...
Nc6 {[%clk 0:02:54.6]} 9. Be2 {[%clk 0:02:53.5]} 9... Bd7 {[%clk 0:02:54.7]} 10.
O-O {[%clk 0:02:53.6]} 10... Nxd4 {[%clk 0:02:55.6]} 11. Bxd4 {[%clk 0:02:51.9]}
11... Bc6 {[%clk 0:02:57.5]} 12. Qc2 {[%clk 0:02:52.2]} 12... Rc8 {[%clk
0:02:57.4]} 13. Rad1 {[%clk 0:02:50.3]} 13... b5 {[%clk 0:02:57.8]} 14. Bxf6
{[%clk 0:02:45.2]} 14... Bxf6 {[%clk 0:02:56]} 15. cxb5 {[%clk 0:02:46.2]} 15...
Bb7 {[%clk 0:02:54.5]} 16. Qd3 {[%clk 0:02:43.7]} 16... Qa5 {[%clk 0:02:53.2]}
17. Rc1 {[%clk 0:02:33.6]} 17... Bxc3 {[%clk 0:02:52.2]} 18. bxc3 {[%clk
0:02:29.4]} 18... Qxa2 {[%clk 0:02:52.5]} 19. Ra1 {[%clk 0:02:29.3]} 19... Qb3
{[%clk 0:02:42.5]} 20. Rxa7 {[%clk 0:02:23.3]} 20... Rxc3 {[%clk 0:02:42.3]} 21.
Qd4 {[%clk 0:02:23.6]} 21... Rb8 {[%clk 0:02:33]} 22. Qb6 {[%clk 0:02:15.2]}
22... Qc2 {[%clk 0:02:23.7]} 23. Rxb7 {[%clk 0:02:00.8]} 23... Rxb7 {[%clk
0:02:23.2]} 24. Qxb7 {[%clk 0:02:00]} 24... Qxe2 {[%clk 0:02:24.1]} 25. Qa8+
{[%clk 0:02:00.4]} 25... Kg7 {[%clk 0:02:22.4]} 26. Qa1 {[%clk 0:02:00.7]} 26...
Qc2 {[%clk 0:02:11.5]} 27. b6 {[%clk 0:02:00.7]} 27... e5 {[%clk 0:02:08.6]} 28.
b7 {[%clk 0:01:47.8]} 28... Rb3 {[%clk 0:02:08]} 29. Qa6 {[%clk 0:01:47.2]}
29... Qb2 {[%clk 0:02:07.8]} 30. Qxd6 {[%clk 0:01:44.6]} 30... Rxb7 {[%clk
0:02:03.3]} 31. Rd1 {[%clk 0:01:45.1]} 31... Qc3 {[%clk 0:01:59.1]} 32. Rd5
{[%clk 0:01:38.6]} 32... Qe1+ {[%clk 0:01:54.2]} 33. Kh2 {[%clk 0:01:38.8]}
33... Qxe4 {[%clk 0:01:55.4]} 34. Qxe5+ {[%clk 0:01:36.3]} 34... Qxe5+ {[%clk
0:01:56.3]} 35. Rxe5 {[%clk 0:01:38.2]} 35... Kf6 {[%clk 0:01:55.5]} 36. Rc5
{[%clk 0:01:28.8]} 36... Rb3 {[%clk 0:01:54.7]} 37. Ra5 {[%clk 0:01:27.1]} 37...
h5 {[%clk 0:01:56.1]} 38. Ra6+ {[%clk 0:01:23.6]} 38... Kg5 {[%clk 0:01:54.8]}
39. g3 {[%clk 0:01:23.5]} 39... Rb5 {[%clk 0:01:43.3]} 40. Kg2 {[%clk
0:01:18.4]} 40... Kf5 {[%clk 0:01:43]} 41. Rc6 {[%clk 0:01:15.1]} 41... f6
{[%clk 0:01:43.2]} 42. Kf3 {[%clk 0:01:12.9]} 42... Rb3+ {[%clk 0:01:42.7]} 43.
Kg2 {[%clk 0:01:13.4]} 43... g5 {[%clk 0:01:43.2]} 44. Rc5+ {[%clk 0:01:10.5]}
44... Kg6 {[%clk 0:01:44]} 45. Rc8 {[%clk 0:01:06.4]} 45... Kf5 {[%clk
0:01:41.3]} 46. Rc5+ {[%clk 0:01:06]} 46... Kg6 {[%clk 0:01:42.3]} 47. Rc8
{[%clk 0:01:06.4]} 47... Kf5 {[%clk 0:01:43.6]} 48. Rc5+ {[%clk 0:01:06.7]}
1/2-1/2

[Event "*** Titled Tuesday Blitz"]
[Site "Chess.com"]
[Date "2020.01.07"]
[Round "4"]
[White "joejan"]
[Black "Vugar_Manafov"]
[Result "0-1"]
[WhiteElo "2151"]
[BlackElo "2593"]
[TimeControl "180+2"]
[EndTime "13:53:19 PST"]
[Termination "Vugar_Manafov won by checkmate"]

1. e4 {[%clk 0:03:01.9]} 1... Nf6 {[%clk 0:02:59.7]} 2. Nc3 {[%clk 0:03:02]}
2... d5 {[%clk 0:02:58.1]} 3. e5 {[%clk 0:03:02.6]} 3... Nfd7 {[%clk 0:02:58.4]}
4. Nxd5 {[%clk 0:03:03.6]} 4... Nxe5 {[%clk 0:02:56]} 5. Ne3 {[%clk 0:03:05]}
5... g6 {[%clk 0:02:52.6]} 6. b3 {[%clk 0:03:05.8]} 6... Bg7 {[%clk 0:02:52.1]}
7. d4 {[%clk 0:03:02.7]} 7... Nec6 {[%clk 0:02:51.7]} 8. c3 {[%clk 0:03:00.9]}
8... e5 {[%clk 0:02:51.1]} 9. d5 {[%clk 0:03:00.9]} 9... Ne7 {[%clk 0:02:51.1]}
10. c4 {[%clk 0:03:00.5]} 10... O-O {[%clk 0:02:52]} 11. Bb2 {[%clk 0:03:00.2]}
11... Nd7 {[%clk 0:02:50.9]} 12. Nf3 {[%clk 0:02:59]} 12... f5 {[%clk
0:02:49.9]} 13. Be2 {[%clk 0:02:47.7]} 13... h6 {[%clk 0:02:49]} 14. O-O {[%clk
0:02:47.5]} 14... g5 {[%clk 0:02:49.3]} 15. b4 {[%clk 0:02:42.8]} 15... g4
{[%clk 0:02:49.8]} 16. Nd2 {[%clk 0:02:37.2]} 16... h5 {[%clk 0:02:50.2]} 17. f4
{[%clk 0:02:32.5]} 17... Ng6 {[%clk 0:02:38.3]} 18. fxe5 {[%clk 0:02:26.8]}
18... f4 {[%clk 0:02:38.3]} 19. Nc2 {[%clk 0:02:12.6]} 19... Ndxe5 {[%clk
0:02:37.9]} 20. Nd4 {[%clk 0:02:08.6]} 20... h4 {[%clk 0:01:44.9]} 21. Ne4
{[%clk 0:02:04.6]} 21... h3 {[%clk 0:01:39.9]} 22. gxh3 {[%clk 0:01:56.1]} 22...
f3 {[%clk 0:01:37.9]} 23. Bd3 {[%clk 0:01:55.5]} 23... Nf4 {[%clk 0:01:35.1]}
24. Bc2 {[%clk 0:01:49.1]} 24... Nxh3+ {[%clk 0:01:24.1]} 25. Kh1 {[%clk
0:01:49.7]} 25... Qh4 {[%clk 0:01:25.1]} 26. Bb3 {[%clk 0:01:40.7]} 26... Nf4
{[%clk 0:01:15]} 27. c5 {[%clk 0:01:31]} 27... Qh3 {[%clk 0:01:14.1]} 28. Rg1
{[%clk 0:01:23.4]} 28... Ng2 {[%clk 0:01:00.5]} 29. Ne6 {[%clk 0:01:10.1]} 29...
g3 {[%clk 0:00:55.9]} 30. Nxg3 {[%clk 0:00:57.6]} 30... Ng4 {[%clk 0:00:56.3]}
31. Nf1 {[%clk 0:00:57.3]} 31... Nf2# {[%clk 0:00:56.1]} 0-1

[Event "*** Titled Tuesday Blitz"]
[Site "Chess.com"]
[Date "2020.01.07"]
[Round "4"]
[White "Heineccius"]
[Black "igorkovalenko"]
[Result "0-1"]
[WhiteElo "2656"]
[BlackElo "2908"]
[TimeControl "180+2"]
[EndTime "13:53:26 PST"]
[Termination "igorkovalenko won by resignation"]

1. d4 {[%clk 0:03:01.9]} 1... Nf6 {[%clk 0:03:00.5]} 2. c4 {[%clk 0:03:02.5]}
2... b6 {[%clk 0:03:01.4]} 3. Nc3 {[%clk 0:03:01.3]} 3... Bb7 {[%clk 0:03:03.3]}
4. Nf3 {[%clk 0:02:58]} 4... g6 {[%clk 0:03:01.6]} 5. g3 {[%clk 0:02:58.3]} 5...
Bg7 {[%clk 0:03:01.2]} 6. Bg2 {[%clk 0:02:59.3]} 6... O-O {[%clk 0:03:02.7]} 7.
O-O {[%clk 0:03:00.7]} 7... Ne4 {[%clk 0:03:03.9]} 8. Bd2 {[%clk 0:02:54.6]}
8... Nxd2 {[%clk 0:02:50]} 9. Qxd2 {[%clk 0:02:54.7]} 9... d6 {[%clk 0:02:50.3]}
10. d5 {[%clk 0:02:15.7]} 10... a5 {[%clk 0:02:43]} 11. Nd4 {[%clk 0:02:14.3]}
11... Nd7 {[%clk 0:02:41.8]} 12. b3 {[%clk 0:02:10.2]} 12... Nc5 {[%clk
0:02:42.3]} 13. Rac1 {[%clk 0:01:59.8]} 13... Qc8 {[%clk 0:02:42.8]} 14. h3
{[%clk 0:01:56]} 14... e5 {[%clk 0:02:43.5]} 15. dxe6 {[%clk 0:01:52.9]} 15...
fxe6 {[%clk 0:02:44.3]} 16. Bxb7 {[%clk 0:01:52.1]} 16... Qxb7 {[%clk
0:02:46.2]} 17. Qe3 {[%clk 0:01:39.1]} 17... Rae8 {[%clk 0:02:46.3]} 18. Ncb5
{[%clk 0:01:29]} 18... Re7 {[%clk 0:02:29.1]} 19. Nf3 {[%clk 0:01:16.4]} 19...
h6 {[%clk 0:02:25.6]} 20. Rfd1 {[%clk 0:01:14.4]} 20... g5 {[%clk 0:02:23.7]}
21. Ne1 {[%clk 0:00:59.5]} 21... Ref7 {[%clk 0:02:24.3]} 22. Nf3 {[%clk
0:00:54]} 22... Qe4 {[%clk 0:02:04.4]} 23. Qxe4 {[%clk 0:00:38.3]} 23... Nxe4
{[%clk 0:02:06.3]} 24. Nbd4 {[%clk 0:00:34.4]} 24... Re7 {[%clk 0:02:07.5]} 25.
Nc6 {[%clk 0:00:16]} 25... Ree8 {[%clk 0:02:08]} 26. Kg2 {[%clk 0:00:15.5]}
26... Bb2 {[%clk 0:02:08.6]} 27. Rc2 {[%clk 0:00:16]} 27... Ba3 {[%clk
0:02:09.6]} 28. e3 {[%clk 0:00:16.8]} 28... Bc5 {[%clk 0:02:09.4]} 29. Nfd4
{[%clk 0:00:17.8]} 29... Rf7 {[%clk 0:02:01.8]} 30. Nb5 {[%clk 0:00:18.8]} 30...
Ref8 {[%clk 0:02:01]} 31. Rf1 {[%clk 0:00:16.6]} 31... Bxe3 {[%clk 0:01:58.4]}
32. f3 {[%clk 0:00:17.8]} 32... Nd2 {[%clk 0:01:50.4]} 33. Re1 {[%clk
0:00:16.7]} 33... Rxf3 {[%clk 0:01:51.4]} 34. Rxe3 {[%clk 0:00:16.2]} 34... Rf2+
{[%clk 0:01:52.8]} 0-1